Workbook

Sheet Indeling spelers (hidden)
A1: Lanssens Liliane | B1: Wylin Jeanine | C1: Suvée Yvan | F1: Delbeke Jacqueline | G1: Dendauw Chantal | H1: Van Nieuwenhuyse Piet
A2: Wylin Jeanine | B2: Suvée Yvan | C2: Delbeke Jacqueline | F2: Dendauw Chantal | G2: Van Nieuwenhuyse Piet | H2: Lanssens Liliane
A3: Suvée Yvan | B3: Delbeke Jacqueline | C3: Dendauw Chantal | F3: Van Nieuwenhuyse Piet | G3: Lanssens Liliane | H3: Wylin Jeanine
B5: Deschrijver Jean-Pierre | C5: Verbanck Ivan | F5: Deklerck Noël | G5: Markey Michel
B6: Verbanck Ivan | C6: Deklerck Noël | F6: Markey Michel | G6: Deschrijver Jean-Pierre
B7: Deklerck Noël | C7: Markey Michel | F7: Deschrijver Jean-Pierre | G7: Verbanck Ivan
B9: Wynsberghe Walter | C9: Leenkneght Lionel | F9: David Marie | G9: De Kimpe Noël
B10: Leenkneght Lionel | C10: David Marie | F10: De Kimpe Noël | G10: Wynsberghe Walter
B11: David Marie | C11: De Kimpe Noël | F11: Wynsberghe Walter | G11: Leenkneght Lionel
B13: Vandecasteele Francine | C13: Rondelez William | F13: Catry Martial | G13: Thorré Marcella
B14: Rondelez William | C14: Catry Martial | F14: Thorré Marcella | G14: Vandecasteele Francine
B15: Catry Martial | C15: Thorré Marcella | F15: Vandecasteele Francine | G15: Rondelez William
B17: De Forche Ann | C17: Borry José | F17: Saelens André | G17: Willemyns Werner
B18: Borry José | C18: Saelens André | F18: Willemyns Werner | G18: De Forche Ann
B19: Saelens André | C19: Willemyns Werner | F19: De Forche Ann | G19: Borry José
B21: Vervaecke Jean | C21: Gheskiere Frans | F21: Vanpachtenbeke Marc | G21: Decommere Jimmy
B22: Gheskiere Frans | C22: Vanpachtenbeke Marc | F22: Decommere Jimmy | G22: Vervaecke Jean
B23: Vanpachtenbeke Marc | C23: Decommere Jimmy | F23: Vervaecke Jean | G23: Gheskiere Frans

Sheet Uitslagen
A1: Deelnemers | B1: 2018-09-03 | E1: 2018-09-17 | H1: 2018-10-01 | K1: 2018-10-15 | N1: 2018-11-05 | Q1: 2018-11-19 | T1: 2018-12-03 | W1: 2018-12-17 | Z1: 2018-01-08 | AC1: 2018-01-15 | AF1: 2018-01-29 | AI1: 2018-02-05 | AL1: 2018-02-19 | AO1: 2018-03-05 | AR1: 2018-03-19 | AU1: 26//03/2018 | AX1: 2018-04-16 | BA1: 2018-04-30 | BD1: DATUM | BG1: Datum | BJ1: Datum
B2: -1- | C2: -2- | D2: -3- | E2: -1- | F2: -2- | G2: -3- | H2: -1- | I2: -2- | J2: -3- | K2: -1- | L2: -2- | M2: -3- | N2: -1- | O2: -2- | P2: -3- | Q2: -1- | R2: -2- | S2: -3- | T2: -1- | U2: -2- | V2: -3- | W2: -1- | X2: -2- | Y2: -3- | Z2: -1- | AA2: -2- | AB2: -3- | AC2: -1- | AD2: -2- | AE2: -3- | AF2: -1- | AG2: -2- | AH2: -3- | AI2: -1- | AJ2: -2- | AK2: -3- | AL2: -1- | AM2: -2- | AN2: -3- | AO2: -1- | AP2: -2- | AQ2: -3- | AR2: -1- | AS2: -2- | AT2: -3- | AU2: -1- | AV2: -2- | AW2: -3- | AX2: -1- | AY2: -2- | AZ2: -3- | BA2: -1- | BB2: -2- | BC2: -3- | BD2: -1- | BE2: -2- | BF2: -3- | BG2: -1- | BH2: -2- | BI2: -3- | BJ2: -1- | BK2: -2- | BL2: -3-
A3: Borry José | B3: 0 | C3: 12 | D3: 10 | E3: 13 | F3: 2 | G3: 13 | H3: 7 | I3: 9 | J3: 11 | K3: 0 | L3: 13 | M3: 2 | N3: 13 | O3: 13 | P3: 13 | Q3: 6 | R3: 13 | S3: 4
A4: Catry Martial | B4: 0 | C4: 13 | D4: 13 | E4: 13 | F4: 13 | G4: 12 | H4: 11 | I4: 13 | J4: 6 | K4: 13 | L4: 13 | M4: 13 | N4: 7 | O4: 13 | P4: 13 | Q4: 13 | R4: 13 | S4: 13
A5: David Marie | B5: 13 | C5: 13 | D5: 10 | E5: 13 | F5: 4 | G5: 5 | H5: 4 | I5: 1 | J5: 4 | K5: 13 | L5: 13 | M5: 13
A6: De Forche Ann
A7: De Kimpe Noël | E7: 13 | F7: 13 | G7: 13 | H7: 13 | I7: 13 | J7: 13 | K7: 13 | L7: 2 | M7: 10 | N7: 13 | O7: 13 | P7: 13 | Q7: 13 | R7: 13 | S7: 13
A8: Dekeyser Dirk | B8: 13 | C8: 13 | D8: 10 | H8: 12 | I8: 12 | J8: 13 | K8: 13 | L8: 2 | M8: 13 | N8: 13 | O8: 4 | P8: 3 | Q8: 6 | R8: 11 | S8: 13
A9: Deklerck Noël | B9: 4 | C9: 4 | D9: 13 | E9: 2 | F9: 13 | G9: 5 | H9: 7 | I9: 13 | J9: 13 | K9: 13 | L9: 10 | M9: 12 | N9: 7 | O9: 8 | P9: 13 | Q9: 6 | R9: 11 | S9: 13
A10: Delbeke Jacqueline | B10: 2 | C10: 5 | D10: 4 | E10: 2 | F10: 13 | G10: 13 | H10: 13 | I10: 12 | K10: 2 | L10: 13 | M10: 12 | N10: 5 | O10: 3 | P10: 11 | Q10: 13 | R10: 7 | S10: 0
A11: Dendauw Chantal | E11: 13 | F11: 10 | G11: 9 | H11: 7 | I11: 3 | J11: 12 | K11: 2 | L11: 2 | M11: 7 | N11: 12 | O11: 13 | P11: 8 | Q11: 8 | R11: 9 | S11: 13
A12: Deschrijver Jean-Pierre | B12: 13 | C12: 5 | D12: 13 | E12: 7 | F12: 10 | G12: 13 | N12: 13 | O12: 13 | P12: 4 | Q12: 13 | R12: 13 | S12: 11
A13: Gheskiere Frans | B13: 2 | C13: 13 | D13: 13 | H13: 11 | I13: 1 | J13: 13 | K13: 13 | L13: 0 | M13: 2 | N13: 7 | O13: 5 | P13: 4 | Q13: 13 | R13: 13 | S13: 13
A14: Lanssens Liliane | N14: 5 | O14: 3 | P14: 11 | Q14: 13 | R14: 9 | S14: 13
A15: Leenkneght Lionel
A16: Markey Michel | B16: 13 | C16: 4 | D16: 3 | E16: 11 | F16: 13 | G16: 13 | H16: 13 | I16: 1 | J16: 6 | K16: 2 | L16: 10 | M16: 13 | N16: 10 | O16: 13 | P16: 3 | Q16: 8 | R16: 9 | S16: 4
A17: Rondelez William | H17: 13 | I17: 13 | J17: 11 | K17: 13 | L17: 10 | M17: 12 | Q17: 13 | R17: 9 | S17: 4
A18: Saelens André | B18: 13 | C18: 12 | D18: 13 | E18: 13 | F18: 13 | G18: 13 | H18: 13 | I18: 12 | J18: 13 | K18: 13 | L18: 13 | M18: 13 | N18: 13 | O18: 5 | P18: 13 | Q18: 13 | R18: 11 | S18: 4
A19: Suvée Yvan | B19: 13 | C19: 13 | D19: 13 | E19: 13 | F19: 13 | G19: 13 | H19: 4 | I19: 13 | J19: 13 | K19: 13 | L19: 13 | M19: 7 | N19: 13 | O19: 3 | P19: 13
A20: Thorré Marcella | B20: 13 | C20: 4 | D20: 13 | E20: 7 | F20: 13 | G20: 9 | K20: 0 | L20: 0 | M20: 13 | N20: 13 | O20: 13 | P20: 13 | Q20: 3 | R20: 13 | S20: 13
A21: Vandecasteele Francine | B21: 13 | C21: 13 | D21: 4 | E21: 11 | F21: 2 | G21: 12 | H21: 7 | I21: 13 | J21: 13 | K21: 2 | L21: 13 | M21: 13 | N21: 12 | O21: 9 | P21: 13 | Q21: 3 | R21: 4 | S21: 3
A22: Van Nieuwenhuyse Piet | B22: 13 | C22: 12 | D22: 13 | E22: 7 | F22: 13 | G22: 9 | H22: 13 | I22: 13 | J22: 13 | K22: 13 | L22: 13 | M22: 13 | N22: 13 | O22: 13 | P22: 13 | Q22: 13 | R22: 13 | S22: 13
A23: Vanpachtenbeke Marc | B23: 4 | C23: 13 | D23: 3 | E23: 2 | F23: 2 | G23: 13 | H23: 13 | I23: 13 | J23: 4 | Q23: 7 | R23: 7 | S23: 13
A24: Verbanck Ivan | E24: 13 | F24: 2 | G24: 12 | K24: 6 | L24: 2 | M24: 13 | N24: 5 | O24: 13 | P24: 13 | Q24: 13 | R24: 13 | S24: 4
A25: Vervaecke Jean | N25: 7 | O25: 13 | P25: 4 | Q25: 0 | R25: 13 | S25: 13
A26: Willemyns Werner | H26: 13 | I26: 1 | J26: 13 | N26: 10 | O26: 4 | P26: 13 | Q26: 13 | R26: 4 | S26: 13
A27: Wylin Jeanine | B27: 4 | C27: 13 | D27: 3 | H27: 13 | I27: 9 | J27: 13 | K27: 6 | L27: 2 | M27: 10 | N27: 13 | O27: 9 | P27: 8 | Q27: 0 | R27: 9 | S27: 11
A28: Wynsberghe Walter | B28: 12 | C28: 13 | D28: 13 | E28: 2 | F28: 13 | G28: 12 | H28: 13 | I28: 13 | J28: 12 | K28: 2 | L28: 13 | M28: 13 | N28: 13 | O28: 8 | P28: 4 | Q28: 13 | R28: 13 | S28: 3
A29: Delombaerde jean paul | B29: 12 | C29: 12 | D29: 10 | E29: 13 | F29: 10 | G29: 13 | H29: 12 | I29: 13 | J29: 3 | N29: 13 | O29: 13 | P29: 11 | Q29: 7 | R29: 13 | S29: 0
A30: Verschoore Louis | E30: 13 | F30: 4 | G30: 5

Sheet Punten (hidden)
A1: PETANQUE SEIZOEN 2017-2018
A2: Deelnemers | C2: Gespeelde | D2: Wedstrijden | E2: Wedstrijd-
C3: Wedstrijden | D3: Gewonnen | E3: punten
A4: 1 | B4: =Uitslagen!A3:A53 -> Borry José | C4: =COUNTIF(Uitslagen!B3:BL3,">=0") -> 18 | D4: =SUMIF(Uitslagen!B3:BL3,"=13")/13 -> 7 | E4: =SUM(Uitslagen!B3:BL3) -> 154
A5: 2 | B5: Catry Martial | C5: =COUNTIF(Uitslagen!B4:BL4,">=0") -> 18 | D5: =SUMIF(Uitslagen!B4:BL4,"=13")/13 -> 13 | E5: =SUM(Uitslagen!B4:BL4) -> 205
A6: 3 | B6: David Marie | C6: =COUNTIF(Uitslagen!B5:BL5,">=0") -> 12 | D6: =SUMIF(Uitslagen!B5:BL5,"=13")/13 -> 6 | E6: =SUM(Uitslagen!B5:BL5) -> 106
A7: 4 | B7: De Forche Ann | C7: =COUNTIF(Uitslagen!B6:BL6,">=0") -> 0 | D7: =SUMIF(Uitslagen!B6:BL6,"=13")/13 -> 0 | E7: =SUM(Uitslagen!B6:BL6) -> 0
A8: 5 | B8: De Kimpe Noël | C8: =COUNTIF(Uitslagen!B7:BL7,">=0") -> 15 | D8: =SUMIF(Uitslagen!B7:BL7,"=13")/13 -> 13 | E8: =SUM(Uitslagen!B7:BL7) -> 181
A9: 6 | B9: Dekeyser Dirk | C9: =COUNTIF(Uitslagen!B8:BL8,">=0") -> 15 | D9: =SUMIF(Uitslagen!B8:BL8,"=13")/13 -> 7 | E9: =SUM(Uitslagen!B8:BL8) -> 151
A10: 7 | B10: Deklerck Noël | C10: =COUNTIF(Uitslagen!B9:BL9,">=0") -> 18 | D10: =SUMIF(Uitslagen!B9:BL9,"=13")/13 -> 7 | E10: =SUM(Uitslagen!B9:BL9) -> 167
A11: 8 | B11: Delbeke Jacqueline | C11: =COUNTIF(Uitslagen!B10:BL10,">=0") -> 17 | D11: =SUMIF(Uitslagen!B10:BL10,"=13")/13 -> 5 | E11: =SUM(Uitslagen!B10:BL10) -> 130
A12: 9 | B12: Dendauw Chantal | C12: =COUNTIF(Uitslagen!B11:BL11,">=0") -> 15 | D12: =SUMIF(Uitslagen!B11:BL11,"=13")/13 -> 3 | E12: =SUM(Uitslagen!B11:BL11) -> 128
A13: 10 | B13: Deschrijver Jean-Pierre | C13: =COUNTIF(Uitslagen!B12:BL12,">=0") -> 12 | D13: =SUMIF(Uitslagen!B12:BL12,"=13")/13 -> 7 | E13: =SUM(Uitslagen!B12:BL12) -> 128
A14: 11 | B14: Gheskiere Frans | C14: =COUNTIF(Uitslagen!B13:BL13,">=0") -> 15 | D14: =SUMIF(Uitslagen!B13:BL13,"=13")/13 -> 7 | E14: =SUM(Uitslagen!B13:BL13) -> 123
A15: 12 | B15: Lanssens Liliane | C15: =COUNTIF(Uitslagen!B14:BL14,">=0") -> 6 | D15: =SUMIF(Uitslagen!B14:BL14,"=13")/13 -> 2 | E15: =SUM(Uitslagen!B14:BL14) -> 54
A16: 13 | B16: Leenkneght Lionel | C16: =COUNTIF(Uitslagen!B15:BL15,">=0") -> 0 | D16: =SUMIF(Uitslagen!B15:BL15,"=13")/13 -> 0 | E16: =SUM(Uitslagen!B15:BL15) -> 0
A17: 14 | B17: Markey Michel | C17: =COUNTIF(Uitslagen!B16:BL16,">=0") -> 18 | D17: =SUMIF(Uitslagen!B16:BL16,"=13")/13 -> 6 | E17: =SUM(Uitslagen!B16:BL16) -> 149
A18: 15 | B18: Rondelez William | C18: =COUNTIF(Uitslagen!B17:BL17,">=0") -> 9 | D18: =SUMIF(Uitslagen!B17:BL17,"=13")/13 -> 4 | E18: =SUM(Uitslagen!B17:BL17) -> 98
A19: 16 | B19: Saelens André | C19: =COUNTIF(Uitslagen!B18:BL18,">=0") -> 18 | D19: =SUMIF(Uitslagen!B18:BL18,"=13")/13 -> 13 | E19: =SUM(Uitslagen!B18:BL18) -> 213
A20: 17 | B20: Suvée Yvan | C20: =COUNTIF(Uitslagen!B19:BL19,">=0") -> 15 | D20: =SUMIF(Uitslagen!B19:BL19,"=13")/13 -> 12 | E20: =SUM(Uitslagen!B19:BL19) -> 170
A21: 18 | B21: Thorré Marcella | C21: =COUNTIF(Uitslagen!B20:BL20,">=0") -> 15 | D21: =SUMIF(Uitslagen!B20:BL20,"=13")/13 -> 9 | E21: =SUM(Uitslagen!B20:BL20) -> 140
A22: 19 | B22: Vandecasteele Francine | C22: =COUNTIF(Uitslagen!B21:BL21,">=0") -> 18 | D22: =SUMIF(Uitslagen!B21:BL21,"=13")/13 -> 7 | E22: =SUM(Uitslagen!B21:BL21) -> 160
A23: 20 | B23: Van Nieuwenhuyse Piet | C23: =COUNTIF(Uitslagen!B22:BL22,">=0") -> 18 | D23: =SUMIF(Uitslagen!B22:BL22,"=13")/13 -> 15 | E23: =SUM(Uitslagen!B22:BL22) -> 223
A24: 21 | B24: Vanpachtenbeke Marc | C24: =COUNTIF(Uitslagen!B23:BL23,">=0") -> 12 | D24: =SUMIF(Uitslagen!B23:BL23,"=13")/13 -> 5 | E24: =SUM(Uitslagen!B23:BL23) -> 94
A25: 22 | B25: Verbanck Ivan | C25: =COUNTIF(Uitslagen!B24:BL24,">=0") -> 12 | D25: =SUMIF(Uitslagen!B24:BL24,"=13")/13 -> 6 | E25: =SUM(Uitslagen!B24:BL24) -> 109
A26: 23 | B26: Vervaecke Jean | C26: =COUNTIF(Uitslagen!B25:BL25,">=0") -> 6 | D26: =SUMIF(Uitslagen!B25:BL25,"=13")/13 -> 3 | E26: =SUM(Uitslagen!B25:BL25) -> 50
A27: 24 | B27: Willemyns Werner | C27: =COUNTIF(Uitslagen!B26:BL26,">=0") -> 9 | D27: =SUMIF(Uitslagen!B26:BL26,"=13")/13 -> 5 | E27: =SUM(Uitslagen!B26:BL26) -> 84
A28: 25 | B28: Wylin Jeanine | C28: =COUNTIF(Uitslagen!B27:BL27,">=0") -> 15 | D28: =SUMIF(Uitslagen!B27:BL27,"=13")/13 -> 4 | E28: =SUM(Uitslagen!B27:BL27) -> 123
A29: 26 | B29: Wynsberghe Walter | C29: =COUNTIF(Uitslagen!B28:BL28,">=0") -> 18 | D29: =SUMIF(Uitslagen!B28:BL28,"=13")/13 -> 10 | E29: =SUM(Uitslagen!B28:BL28) -> 185
A30: 27 | B30: Delombaerde jean paul | C30: =COUNTIF(Uitslagen!B29:BL29,">=0") -> 15 | D30: =SUMIF(Uitslagen!B29:BL29,"=13")/13 -> 6 | E30: =SUM(Uitslagen!B29:BL29) -> 155
A31: 28 | B31: Verschoore Louis | C31: =COUNTIF(Uitslagen!B30:BL30,">=0") -> 3 | D31: =SUMIF(Uitslagen!B30:BL30,"=13")/13 -> 1 | E31: =SUM(Uitslagen!B30:BL30) -> 22
A32: 29 | B32: 0 | C32: =COUNTIF(Uitslagen!B31:BL31,">=0") -> 0 | D32: =SUMIF(Uitslagen!B31:BL31,"=13")/13 -> 0 | E32: =SUM(Uitslagen!B31:BL31) -> 0
A33: 30 | B33: 0 | C33: =COUNTIF(Uitslagen!B32:BL32,">=0") -> 0 | D33: =SUMIF(Uitslagen!B32:BL32,"=13")/13 -> 0 | E33: =SUM(Uitslagen!B32:BL32) -> 0
A34: 31 | B34: 0 | C34: =COUNTIF(Uitslagen!B33:BL33,">=0") -> 0 | D34: =SUMIF(Uitslagen!B33:BL33,"=13")/13 -> 0 | E34: =SUM(Uitslagen!B33:BL33) -> 0
A35: 32 | B35: 0 | C35: =COUNTIF(Uitslagen!B34:BL34,">=0") -> 0 | D35: =SUMIF(Uitslagen!B34:BL34,"=13")/13 -> 0 | E35: =SUM(Uitslagen!B34:BL34) -> 0
A36: 33 | B36: 0 | C36: =COUNTIF(Uitslagen!B35:BL35,">=0") -> 0 | D36: =SUMIF(Uitslagen!B35:BL35,"=13")/13 -> 0 | E36: =SUM(Uitslagen!B35:BL35) -> 0
A37: 34 | B37: 0 | C37: =COUNTIF(Uitslagen!B36:BL36,">=0") -> 0 | D37: =SUMIF(Uitslagen!B36:BL36,"=13")/13 -> 0 | E37: =SUM(Uitslagen!B36:BL36) -> 0
A38: 35 | B38: 0 | C38: =COUNTIF(Uitslagen!B37:BL37,">=0") -> 0 | D38: =SUMIF(Uitslagen!B37:BL37,"=13")/13 -> 0 | E38: =SUM(Uitslagen!B37:BL37) -> 0
A39: 36 | B39: 0 | C39: =COUNTIF(Uitslagen!B38:BL38,">=0") -> 0 | D39: =SUMIF(Uitslagen!B38:BL38,"=13")/13 -> 0 | E39: =SUM(Uitslagen!B38:BL38) -> 0
A40: 37 | B40: 0 | C40: =COUNTIF(Uitslagen!B39:BL39,">=0") -> 0 | D40: =SUMIF(Uitslagen!B39:BL39,"=13")/13 -> 0 | E40: =SUM(Uitslagen!B39:BL39) -> 0
A41: 38 | B41: 0 | C41: =COUNTIF(Uitslagen!B40:BL40,">=0") -> 0 | D41: =SUMIF(Uitslagen!B40:BL40,"=13")/13 -> 0 | E41: =SUM(Uitslagen!B40:BL40) -> 0
A42: 39 | B42: 0 | C42: =COUNTIF(Uitslagen!B41:BL41,">=0") -> 0 | D42: =SUMIF(Uitslagen!B41:BL41,"=13")/13 -> 0 | E42: =SUM(Uitslagen!B41:BL41) -> 0
A43: 40 | B43: 0 | C43: =COUNTIF(Uitslagen!B42:BL42,">=0") -> 0 | D43: =SUMIF(Uitslagen!B42:BL42,"=13")/13 -> 0 | E43: =SUM(Uitslagen!B42:BL42) -> 0
A44: 41 | B44: 0 | C44: =COUNTIF(Uitslagen!B43:BL43,">=0") -> 0 | D44: =SUMIF(Uitslagen!B43:BL43,"=13")/13 -> 0 | E44: =SUM(Uitslagen!B43:BL43) -> 0
A45: 42 | B45: 0 | C45: =COUNTIF(Uitslagen!B44:BL44,">=0") -> 0 | D45: =SUMIF(Uitslagen!B44:BL44,"=13")/13 -> 0 | E45: =SUM(Uitslagen!B44:BL44) -> 0
A46: 43 | B46: 0 | C46: =COUNTIF(Uitslagen!B45:BL45,">=0") -> 0 | D46: =SUMIF(Uitslagen!B45:BL45,"=13")/13 -> 0 | E46: =SUM(Uitslagen!B45:BL45) -> 0
A47: 44 | B47: 0 | C47: =COUNTIF(Uitslagen!B46:BL46,">=0") -> 0 | D47: =SUMIF(Uitslagen!B46:BL46,"=13")/13 -> 0 | E47: =SUM(Uitslagen!B46:BL46) -> 0
A48: 45 | B48: 0 | C48: =COUNTIF(Uitslagen!B47:BL47,">=0") -> 0 | D48: =SUMIF(Uitslagen!B47:BL47,"=13")/13 -> 0 | E48: =SUM(Uitslagen!B47:BL47) -> 0
A49: 46 | B49: 0 | C49: =COUNTIF(Uitslagen!B48:BL48,">=0") -> 0 | D49: =SUMIF(Uitslagen!B48:BL48,"=13")/13 -> 0 | E49: =SUM(Uitslagen!B48:BL48) -> 0
A50: 47 | B50: 0 | C50: =COUNTIF(Uitslagen!B49:BL49,">=0") -> 0 | D50: =SUMIF(Uitslagen!B49:BL49,"=13")/13 -> 0 | E50: =SUM(Uitslagen!B49:BL49) -> 0
A51: 48 | B51: 0 | C51: =COUNTIF(Uitslagen!B50:BL50,">=0") -> 0 | D51: =SUMIF(Uitslagen!B50:BL50,"=13")/13 -> 0 | E51: =SUM(Uitslagen!B50:BL50) -> 0
A52: 49 | B52: 0 | C52: =COUNTIF(Uitslagen!B51:BL51,">=0") -> 0 | D52: =SUMIF(Uitslagen!B51:BL51,"=13")/13 -> 0 | E52: =SUM(Uitslagen!B51:BL51) -> 0
A53: 50 | B53: 0 | C53: =COUNTIF(Uitslagen!B52:BL52,">=0") -> 0 | D53: =SUMIF(Uitslagen!B52:BL52,"=13")/13 -> 0 | E53: =SUM(Uitslagen!B52:BL52) -> 0
B54: 0

Sheet Blad1 (hidden)
C2: 2 | D2: 5 | E2: =C2:C11*D2:D11 -> 10 | H2: 1 | I2: 2 | J2: 3 | K2: =SUM(H2:J2) -> 6
C3: 1 | E3: 0 | K3: =SUM(H3:J3) -> 0
E4: 0 | K4: 0
E5: 0 | K5: 0
E6: 0 | I6: 2 | K6: 2
E7: 0 | K7: 0
E8: 0 | K8: 0
E9: 0 | K9: 0
E10: 0 | K10: 0
E11: 0 | K11: 0

Sheet supplement-aan-punten
B1: Hieronder ingeven van de punten van vorige wedstrijden
A2: Deelnemers | B2: Gespeeld | C2: Gewonnen | D2: Punten
A3: =Uitslagen!A3:A53 -> Borry José
A4: Catry Martial
A5: David Marie
A6: De Forche Ann | F6: opgepast enkel gebruiken indien nodig
A7: De Kimpe Noël
A8: Dekeyser Dirk
A9: Deklerck Noël
A10: Delbeke Jacqueline
A11: Dendauw Chantal
A12: Deschrijver Jean-Pierre
A13: Gheskiere Frans
A14: Lanssens Liliane
A15: Leenkneght Lionel
A16: Markey Michel
A17: Rondelez William
A18: Saelens André
A19: Suvée Yvan
A20: Thorré Marcella
A21: Vandecasteele Francine
A22: Van Nieuwenhuyse Piet
A23: Vanpachtenbeke Marc
A24: Verbanck Ivan
A25: Vervaecke Jean
A26: Willemyns Werner
A27: Wylin Jeanine
A28: Wynsberghe Walter
A29: Delombaerde jean paul
A30: Verschoore Louis
A31: 0
A32: 0
A33: 0
A34: 0
A35: 0
A36: 0
A37: 0
A38: 0
A39: 0
A40: 0
A41: 0
A42: 0
A43: 0
A44: 0
A45: 0
A46: 0
A47: 0
A48: 0
A49: 0
A50: 0
A51: 0
A52: 0
A53: 0

Sheet Klassement
A1: PETANQUE SEIZOEN 2017-2018 | D1: 2018-11-19
A2: Deelnemers | C2: Gespeelde wedstrijden | D2: Gewonnen wedstrijden | E2: Wedstrijd punten
A3: 1 | B3: Van Nieuwenhuyse Piet | C3: 18 | D3: 15 | E3: 223
A4: 2 | B4: Saelens André | C4: 18 | D4: 13 | E4: 213
A5: 3 | B5: Catry Martial | C5: 18 | D5: 13 | E5: 205
A6: 4 | B6: De Kimpe Noël | C6: 15 | D6: 13 | E6: 181
A7: 5 | B7: Suvée Yvan | C7: 15 | D7: 12 | E7: 170
A8: 6 | B8: Wynsberghe Walter | C8: 18 | D8: 10 | E8: 185
A9: 7 | B9: Thorré Marcella | C9: 15 | D9: 9 | E9: 140
A10: 8 | B10: Deklerck Noël | C10: 18 | D10: 7 | E10: 167
A11: 9 | B11: Vandecasteele Francine | C11: 18 | D11: 7 | E11: 160
A12: 10 | B12: Borry José | C12: 18 | D12: 7 | E12: 154
A13: 11 | B13: Dekeyser Dirk | C13: 15 | D13: 7 | E13: 151
A14: 12 | B14: Deschrijver Jean-Pierre | C14: 12 | D14: 7 | E14: 128
A15: 13 | B15: Gheskiere Frans | C15: 15 | D15: 7 | E15: 123
A16: 14 | B16: Delombaerde jean paul | C16: 15 | D16: 6 | E16: 155
A17: 15 | B17: Markey Michel | C17: 18 | D17: 6 | E17: 149
A18: 16 | B18: Verbanck Ivan | C18: 12 | D18: 6 | E18: 109
A19: 17 | B19: David Marie | C19: 12 | D19: 6 | E19: 106
A20: 18 | B20: Delbeke Jacqueline | C20: 17 | D20: 5 | E20: 130
A21: 19 | B21: Vanpachtenbeke Marc | C21: 12 | D21: 5 | E21: 94
A22: 20 | B22: Willemyns Werner | C22: 9 | D22: 5 | E22: 84
A23: 21 | B23: Wylin Jeanine | C23: 15 | D23: 4 | E23: 123
A24: 22 | B24: Rondelez William | C24: 9 | D24: 4 | E24: 98
A25: 23 | B25: Dendauw Chantal | C25: 15 | D25: 3 | E25: 128
A26: 24 | B26: Vervaecke Jean | C26: 6 | D26: 3 | E26: 50
A27: 25 | B27: Lanssens Liliane | C27: 6 | D27: 2 | E27: 54
A28: 26 | B28: Verschoore Louis | C28: 3 | D28: 1 | E28: 22
A29: 27 | B29: Leenkneght Lionel | C29: 0 | D29: 0 | E29: 0
A30: 28 | B30: De Forche Ann | C30: 0 | D30: 0 | E30: 0
A31: 29 | B31: 0 | C31: 0 | D31: 0 | E31: 0
A32: 30 | B32: 0 | C32: 0 | D32: 0 | E32: 0
A33: 31 | B33: 0 | C33: 0 | D33: 0 | E33: 0
A34: 32 | B34: 0 | C34: 0 | D34: 0 | E34: 0
A35: 33 | B35: 0 | C35: 0 | D35: 0 | E35: 0
A36: 34 | B36: 0 | C36: 0 | D36: 0 | E36: 0
A37: 35 | B37: 0 | C37: 0 | D37: 0 | E37: 0
A38: 36 | B38: 0 | C38: 0 | D38: 0 | E38: 0
A39: 37 | B39: 0 | C39: 0 | D39: 0 | E39: 0
A40: 38 | B40: 0 | C40: 0 | D40: 0 | E40: 0
A41: 39 | B41: 0 | C41: 0 | D41: 0 | E41: 0
A42: 40 | B42: 0 | C42: 0 | D42: 0 | E42: 0
A43: 41 | B43: 0 | C43: 0 | D43: 0 | E43: 0
A44: 42 | B44: 0 | C44: 0 | D44: 0 | E44: 0
A45: 43 | B45: 0 | C45: 0 | D45: 0 | E45: 0
A46: 44 | B46: 0 | C46: 0 | D46: 0 | E46: 0
A47: 45 | B47: 0 | C47: 0 | D47: 0 | E47: 0
A48: 46 | B48: 0 | C48: 0 | D48: 0 | E48: 0
A49: 47 | B49: 0 | C49: 0 | D49: 0 | E49: 0
A50: 48 | B50: 0 | C50: 0 | D50: 0 | E50: 0
A51: 49 | B51: 0 | C51: 0 | D51: 0 | E51: 0
A52: 50 | B52: 0 | C52: 0 | D52: 0 | E52: 0
